bitfinex-derivatives/quotes_SOLF0:USTF0_20250228
["timestamp","ask_amount","ask_price","bid_price","bid_amount"]
[1740719395563,128.09020872,127.47,127.43,86.22665714]
[1740719395765,104.5403,127.45,127.41,119.15785975]
[1740719395964,104.5403,127.45,127.42,1.44259985]
[1740719396165,3.1355,127.47,127.42,1.44259985]
[1740719396363,128.09020872,127.45,127.42,1.44259985]
[1740719396668,23.60672804,127.45,127.42,1.49314227]
[1740719396869,0.05681932,127.45,127.42,1.49314227]
[1740719397167,329.81375316,127.45,127.42,1.49314227]
[1740719397468,128.09020872,127.43,127.42,0.05054242]
[1740719397860,0.05681932,127.45,127.42,0.05054242]
[1740719398059,128.09020872,127.44,127.42,0.05054242]
[1740719398363,128.09020872,127.44,127.42,7.90624242]
[1740719398666,0.05681932,127.45,127.42,0.05054242]
[1740719398970,128.09020872,127.43,127.37,91.90089133]
[1740719399160,128.09020872,127.41,127.37,91.90089133]
[1740719399362,128.09020872,127.39,127.37,91.90089133]
[1740719399567,128.09020872,127.39,127.37,99.75959133]
[1740719399866,3.1538,127.46,127.37,99.75959133]
[1740719400068,128.09020872,127.39,127.37,91.13644714]
[1740719400263,128.09020872,127.38,127.37,91.13644714]
[1740719400666,329.75693384,127.38,127.37,91.13644714]
[1740719401474,329.75693384,127.38,127.32,414.4345611]
[1740719401666,104.5403,127.35,127.33,1.44364662]
[1740719402068,0.05413362,127.36,127.33,1.44364662]
[1740719402268,128.09020872,127.34,127.33,1.44364662]
[1740719402464,128.09020872,127.34,127.32,299.56665714]
[1740719402773,128.09020872,127.34,127.32,61.48425714]
[1740719402774,128.09020872,127.33,127.32,61.48425714]
[1740719403162,457.84714256,127.33,127.32,61.48425714]
[1740719404066,457.84714256,127.33,127.25,14.44]
[1740719404373,128.09020872,127.3,127.26,1.43764025]
[1740719404573,0.05413033,127.3,127.26,1.43764025]
[1740719404773,3.033e-05,127.3,127.26,1.43764025]
[1740719405977,3.033e-05,127.3,127.27,0.05573029]
[1740719406177,3.033e-05,127.3,127.29,7.8637]
[1740719406577,329.75696417,127.3,127.27,0.05573029]
[1740719406777,128.09020872,127.29,127.27,0.05573029]
[1740719406977,128.09020872,127.28,127.27,0.05573029]
[1740719407373,3.033e-05,127.3,127.27,0.05573029]
[1740719407671,104.5403,127.29,127.27,0.05573029]
[1740719408078,3.033e-05,127.3,127.29,7.8637]
[1740719408279,213.46,127.45,127.27,0.05573029]
[1740719408475,112.74293905,127.33,127.32,7.8619]
[1740719408668,112.74293905,127.33,127.26,3.0327]
[1740719408875,112.74293905,127.3,127.27,1.43748676]
[1740719409276,0.3781,127.44,127.27,1.43748676]
[1740719409471,0.0578502,127.3,127.27,1.49411094]
[1740719409677,112.74293905,127.32,127.27,1.43748676]
[1740719409976,0.06002219,127.31,127.27,1.4920482]
[1740719410277,112.74293905,127.35,127.34,7.8606]
[1740719410477,190.0,127.42,127.26,3.0327]
[1740719410478,112.74293905,127.37,127.33,14.44]
[1740719410674,112.74293905,127.39,127.33,14.44]
[1740719410873,112.74293905,127.4,127.34,1.43687816]
[1740719411179,23.54990872,127.41,127.35,216.5927]
[1740719411376,89.19303033,127.4,127.39,7.8576]
[1740719411681,1.509e-05,127.39,127.35,216.5927]
[1740719411872,1.509e-05,127.39,127.36,1.43631821]
[1740719412066,0.3819,127.52,127.36,1.43631821]
[1740719412277,112.74293905,127.48,127.37,1.57022846]
[1740719412575,112.74293905,127.48,127.45,7.8536]
[1740719412774,112.74293905,127.45,127.44,14.44]
[1740719412975,112.74293905,127.46,127.44,14.44]
[1740719413173,112.74293905,127.47,127.44,14.44]
[1740719413572,112.74293905,127.45,127.44,14.44]
[1740719413978,0.05648713,127.48,127.44,14.44]
[1740719414275,23.54990872,127.47,127.44,14.44]
[1740719414477,0.05648713,127.48,127.44,14.44]
[1740719414682,0.05648713,127.48,127.45,1.43561699]
[1740719415578,112.74293905,127.46,127.44,14.44]
[1740719415879,112.74293905,127.45,127.44,14.44]
[1740719416379,0.05648713,127.48,127.44,15.87583463]
[1740719416578,0.05648713,127.48,127.45,1.43583463]
[1740719416779,0.05648713,127.48,127.46,7.8532]
[1740719416979,0.05648713,127.48,127.47,1.43583463]
[1740719417180,0.3786,127.56,127.47,1.43583463]
[1740719417379,112.74293905,127.51,127.47,1.43583463]
[1740719417579,112.74293905,127.51,127.46,216.5571]
[1740719417775,89.19303033,127.49,127.46,216.5571]
[1740719417979,112.74293905,127.48,127.46,216.5571]
[1740719418177,112.74293905,127.49,127.46,216.5571]
[1740719418378,0.0587297,127.48,127.46,216.60933051]
[1740719418573,0.0587297,127.48,127.46,213.51223051]
[1740719418778,112.74293905,127.47,127.46,213.51223051]
[1740719419174,0.0587297,127.48,127.46,213.51223051]
[1740719419578,0.3786,127.56,127.47,7.8526]
[1740719419777,112.74293905,127.51,127.46,213.46]
[1740719419973,112.74293905,127.52,127.47,1.43532202]
[1740719420185,112.74293905,127.53,127.47,4.57682202]
[1740719420380,112.74293905,127.52,127.48,1.43532202]
[1740719420579,112.74293905,127.52,127.49,14.44]
[1740719420780,112.74293905,127.52,127.49,14.49446496]
[1740719420781,112.74293905,127.5,127.49,14.49446496]
[1740719421284,442.49987289,127.5,127.49,0.05446496]
[1740719422582,442.49987289,127.5,127.46,227.9]
[1740719422772,112.74293905,127.49,127.46,227.9]
[1740719423082,0.05269273,127.51,127.46,227.9]
[1740719423273,112.74293905,127.5,127.47,1.43540882]
[1740719423673,0.05269273,127.51,127.47,0.0516183]
[1740719423879,0.05269273,127.51,127.47,4.80953992]
[1740719424078,0.05269273,127.51,127.48,1.43542162]
[1740719424373,0.05269273,127.51,127.47,3.3741183]
[1740719424374,0.05269273,127.51,127.5,7.8508]
[1740719424580,190.0,127.57,127.5,1.4352487]
[1740719424780,112.74293905,127.56,127.49,1.4352487]
[1740719425084,0.3786,127.64,127.48,30.0038]
[1740719425376,112.74293905,127.59,127.48,30.0038]
[1740719425578,112.74293905,127.6,127.49,1.56875049]
[1740719425882,5.729e-05,127.55,127.52,0.05653947]
[1740719426083,112.74293905,127.61,127.58,7.8457]
[1740719426278,0.4356,127.65,127.58,7.8457]
[1740719426584,89.19303033,127.6,127.53,15.98825844]
[1740719426883,0.05279555,127.58,127.57,7.846]
[1740719427281,190.0,127.66,127.57,214.77420529]
[1740719427582,112.74293905,127.63,127.58,1.43420529]
[1740719427978,112.74293905,127.62,127.58,1.43420529]
[1740719428187,442.49987289,127.63,127.58,1.43420529]
[1740719428381,442.49987289,127.63,127.62,7.8434]
[1740719428781,329.75693384,127.63,127.6,14.42]
[1740719429086,112.74293905,127.61,127.6,14.42]
[1740719429485,442.49987289,127.61,127.59,0.050354]
[1740719429686,112.74293905,127.6,127.59,0.050354]
[1740719430190,329.75693384,127.6,127.59,0.050354]
[1740719430483,0.05146562,127.61,127.59,0.050354]
[1740719430689,1.87819734,127.79,127.6,7.844]
[1740719430986,112.74293905,127.62,127.58,3.3119]
[1740719431188,112.74293905,127.61,127.57,213.34]
[1740719431382,23.54990872,127.58,127.57,213.34]
[1740719431588,112.74293905,127.58,127.57,213.34]
[1740719431788,437.44747289,127.58,127.57,213.34]
[1740719432587,437.39579938,127.58,127.51,14.42]
[1740719432785,112.74293905,127.53,127.51,14.42]
[1740719433183,4.0073,127.64,127.51,14.42]
[1740719433384,112.74293905,127.53,127.51,22.2697]
[1740719433680,328.66016033,127.64,127.49,216.3113]
[1740719433681,112.74293905,127.52,127.49,213.24]
[1740719433884,112.74293905,127.51,127.49,213.24]
[1740719434082,89.19303033,127.51,127.49,213.29374252]
[1740719434287,112.74293905,127.5,127.49,213.29374252]
[1740719434789,413.84589066,127.5,127.49,213.29374252]
[1740719435289,437.39579938,127.5,127.49,213.29374252]
[1740719436083,0.04968934,127.52,127.49,213.29374252]
[1740719436284,112.74293905,127.51,127.49,213.29374252]
[1740719436489,0.04968934,127.52,127.49,213.29374252]
[1740719436686,8.934e-05,127.52,127.49,213.29374252]
[1740719437086,8.934e-05,127.52,127.49,216.65704252]
[1740719437286,8.934e-05,127.52,127.5,3.00347783]
[1740719437590,8.934e-05,127.52,127.51,1.56850443]
[1740719437790,8.934e-05,127.52,127.51,9.41870443]
[1740719438390,8.934e-05,127.52,127.51,10.85307789]
[1740719438791,0.3745,127.67,127.51,26.55287789]
[1740719438986,112.74293905,127.63,127.61,7.8439]
[1740719439292,23.54990872,127.6,127.59,14.42]
[1740719439492,112.74293905,127.6,127.59,14.42]
[1740719439784,0.3745,127.67,127.51,1.56850443]
[1740719439989,112.74293905,127.52,127.51,1.56850443]
[1740719440193,23.54990872,127.52,127.44,6.5548]
[1740719440391,437.39579938,127.52,127.5,0.0507755]
[1740719440592,437.37579938,127.52,127.5,0.0507755]
[1740719440983,0.05717895,127.53,127.5,14.4707755]
[1740719441390,3.1185,127.6,127.51,1.43495154]
[1740719441691,112.74293905,127.56,127.51,8.05265154]
[1740719441891,112.74293905,127.56,127.54,7.8479]
[1740719442093,3.1185,127.6,127.51,6.6177]
[1740719442292,112.74293905,127.57,127.52,1.43477281]
[1740719442588,0.05128995,127.56,127.54,7.8482]
[1740719442791,112.794229,127.56,127.53,0.05085807]
[1740719442994,112.74293905,127.55,127.53,0.05085807]
[1740719443186,112.74293905,127.54,127.53,0.05085807]
[1740719443387,112.74293905,127.55,127.53,0.05085807]
[1740719443898,437.37579938,127.55,127.53,0.05085807]
[1740719444696,112.74293905,127.54,127.53,0.05085807]
[1740719445093,437.37579938,127.54,127.49,9.28641968]
[1740719445293,112.74293905,127.51,127.49,7.8513]
[1740719445492,112.74293905,127.51,127.48,14.42]
[1740719445795,112.74293905,127.49,127.44,87.51922851]
[1740719446099,112.74293905,127.47,127.44,87.51922851]
[1740719446300,112.74293905,127.46,127.45,0.05440043]
[1740719446698,324.63286033,127.46,127.45,0.05440043]
[1740719447496,0.0526986,127.48,127.45,0.05440043]
[1740719447694,413.87858926,127.48,127.45,0.05440043]
[1740719447904,0.0526986,127.48,127.45,1.49008492]
[1740719449001,190.0,127.55,127.45,1.49008492]
[1740719449202,112.74293905,127.53,127.46,3.9071]
[1740719449603,190.0,127.63,127.47,3.00468111]
[1740719449803,112.74293905,127.55,127.48,3.00455803]
[1740719450005,112.74293905,127.55,127.49,15.85568449]
[1740719450308,3.634e-05,127.53,127.5,5.5177405]
[1740719450509,89.19303033,127.56,127.51,1.43568449]
[1740719450903,2.7626,127.62,127.51,1.43568449]
[1740719451204,89.19303033,127.56,127.51,1.43568449]
[1740719451403,112.74293905,127.56,127.55,0.0553546]
[1740719451598,437.37579938,127.56,127.51,1.43568449]
[1740719451804,0.05579251,127.57,127.55,7.8473]
[1740719452004,112.79873156,127.57,127.5,4.0238]
[1740719452205,437.43159189,127.57,127.55,0.05516978]
[1740719452405,437.43159189,127.57,127.51,1.43473605]
[1740719452601,190.0,127.61,127.55,0.04988552]
[1740719452807,99.59733156,127.59,127.55,14.46988552]
[1740719453309,3.8469,127.63,127.55,14.46988552]
[1740719453608,76.04742284,127.6,127.57,7.8463]
[1740719453904,76.1011669,127.6,127.58,0.05957508]
[1740719454207,99.59733156,127.59,127.58,0.05957508]
[1740719454509,424.28393595,127.6,127.58,0.05957508]
[1740719454708,400.73402723,127.6,127.58,0.05957508]
[1740719455309,42.7833161,127.78,127.58,0.05957508]
[1740719455603,99.59733156,127.65,127.56,1.43443091]
[1740719455802,99.59733156,127.64,127.6,7.8442]
[1740719456008,99.59733156,127.64,127.57,1.56776671]
[1740719456206,2.7591,127.7,127.58,1.4338936]
[1740719456413,0.05699672,127.62,127.59,1.48642585]
[1740719456709,99.59733156,127.64,127.6,9.27848213]
[1740719456909,0.05575226,127.62,127.59,0.05619278]
[1740719457110,99.59733156,127.64,127.6,7.8446]
[1740719457409,0.05023466,127.62,127.61,1.43383371]
[1740719457809,0.05023466,127.62,127.59,0.05793731]
[1740719458509,0.05023466,127.62,127.61,7.844]
[1740719458701,0.05023466,127.62,127.61,1.43379558]
[1740719458898,305.93893905,127.62,127.61,1.43379558]
[1740719459101,305.93893905,127.62,127.59,0.05793731]
[1740719459705,99.59733156,127.6,127.59,0.05793731]
[1740719459900,76.04742284,127.6,127.59,0.05793731]
[1740719460105,0.05023466,127.62,127.59,0.05793731]
[1740719460304,76.0976575,127.62,127.59,0.05793731]
[1740719460500,0.05023466,127.62,127.59,0.05793731]
[1740719460705,99.59733156,127.6,127.57,1.56776671]
[1740719461004,99.59733156,127.58,127.55,85.94986254]
[1740719461211,99.59733156,127.56,127.55,85.94986254]
[1740719461607,405.48603595,127.56,127.55,85.94986254]
[1740719461808,405.48603595,127.56,127.51,100.36986254]
[1740719462009,99.59733156,127.55,127.51,100.36986254]
[1740719462209,0.05811417,127.57,127.54,7.8479]
[1740719462512,99.59733156,127.56,127.52,0.05803611]
[1740719462712,99.59733156,127.54,127.52,0.05803611]
[1740719463011,305.94289595,127.57,127.52,1.48177114]
[1740719463012,99.59733156,127.56,127.52,1.48177114]
[1740719463208,99.59733156,127.53,127.52,0.05803611]
[1740719463412,99.59733156,127.53,127.49,135.29045644]
[1740719463613,99.59733156,127.52,127.49,135.29045644]
[1740719463912,0.05430772,127.54,127.49,116.65717472]
[1740719464108,8.0213,127.61,127.5,5.33164823]
[1740719464411,4.1468,127.66,127.58,7.8458]
[1740719464714,76.04742284,127.62,127.59,227.62]
[1740719465014,99.59733156,127.63,127.6,14.42]
[1740719465213,4.1468,127.71,127.6,14.42]
[1740719465510,0.05915524,127.63,127.6,14.47940643]
[1740719465715,76.04742284,127.64,127.6,14.42]
[1740719465907,0.05763654,127.63,127.6,14.47727671]
[1740719466109,99.59733156,127.64,127.6,22.2645]
[1740719466310,0.05929388,127.63,127.6,14.47627829]
[1740719467309,99.59733156,127.61,127.6,0.05627829]
[1740719467813,0.05929388,127.63,127.6,0.05627829]
[1740719468011,99.59733156,127.61,127.6,0.05627829]
[1740719468414,0.05929388,127.63,127.6,0.05627829]
[1740719468714,4.1468,127.71,127.6,0.05627829]
[1740719468913,99.59733156,127.66,127.6,7.9908]
[1740719469115,76.04742284,127.68,127.6,7.9908]
[1740719469306,99.59733156,127.68,127.6,7.9908]
[1740719469512,3.9541,127.72,127.6,7.9908]
[1740719469809,76.04742284,127.69,127.61,1.56727529]
[1740719470010,0.05834768,127.67,127.61,1.56727529]
[1740719470210,0.05834768,127.67,127.65,0.05899323]
[1740719470509,0.05834768,127.67,127.66,14.4]
[1740719471413,3.9541,127.72,127.66,14.4]
[1740719471414,128.34994833,127.8,127.66,37.9]
[1740719471711,128.34994833,127.8,127.67,5.60323873]
[1740719471916,99.59733156,127.76,127.68,1.56641604]
[1740719472321,99.59733156,127.76,127.72,7.837]
[1740719472619,99.59733156,127.76,127.73,14.4]
[1740719472810,0.05589622,127.75,127.73,14.4]
[1740719473007,0.05589622,127.75,127.73,22.2361]
[1740719473414,0.05589622,127.75,127.73,14.4]
[1740719473915,0.05589622,127.75,127.73,22.2365]
[1740719474320,99.59733156,127.74,127.73,14.4]
[1740719474522,99.59733156,127.74,127.68,1.56641604]
[1740719474817,99.59733156,127.69,127.68,1.56641604]
[1740719475021,99.59733156,127.69,127.62,14.4]
[1740719475322,99.59733156,127.68,127.65,7.8414]
[1740719475817,99.59733156,127.68,127.66,7.8409]
[1740719475818,0.05928686,127.68,127.66,7.8409]
[1740719477123,0.05928686,127.68,127.65,0.05621973]
[1740719477314,0.05928686,127.68,127.67,7.8403]
[1740719478413,190.0,127.78,127.65,0.05621973]
[1740719478619,99.59733156,127.75,127.65,0.05621973]
[1740719478918,99.59733156,127.75,127.71,7.8374]
[1740719479219,99.59733156,127.75,127.72,14.4]
[1740719479420,99.59733156,127.75,127.73,22.236]
[1740719479614,99.59733156,127.75,127.73,14.4]
[1740719479615,0.05137299,127.75,127.73,14.4]
[1740719479818,99.59733156,127.74,127.73,14.4]
[1740719480008,99.59733156,127.74,127.73,8.1581]
[1740719480212,0.05137299,127.75,127.72,0.05859338]
[1740719480415,0.05137299,127.75,127.7,213.04]
[1740719480416,99.59733156,127.73,127.7,213.04]
[1740719480720,99.59733156,127.71,127.7,213.04]
[1740719480918,99.59733156,127.71,127.7,204.7265]
[1740719481116,190.0,127.74,127.7,204.7265]
[1740719481311,99.59733156,127.71,127.7,204.7265]
[1740719481818,0.0559794,127.72,127.69,0.05357305]
[1740719482217,99.59733156,127.7,127.69,0.05357305]
[1740719483120,0.0559794,127.72,127.69,0.05357305]
[1740719483317,99.59733156,127.71,127.7,7.8385]
[1740719483514,99.59733156,127.71,127.69,0.05357305]
[1740719483712,99.59733156,127.7,127.69,0.05357305]
[1740719483912,99.59733156,127.7,127.66,1.56666144]
[1740719484122,0.0559794,127.72,127.66,1.56666144]
[1740719484123,99.59733156,127.69,127.66,1.56666144]
[1740719484617,190.0,127.78,127.66,1.56666144]
[1740719484814,99.59733156,127.74,127.67,1.4218034]
[1740719485014,0.05312619,127.73,127.71,0.05197535]
[1740719485211,0.05312619,127.73,127.72,14.4]
[1740719485523,99.59733156,127.72,127.71,0.05197535]
[1740719486818,99.59733156,127.72,127.64,4.1218]
[1740719486819,213.48,127.72,127.56,23.55]
[1740719487013,288.0,127.83,127.57,2.99039936]
[1740719487014,99.59733156,127.62,127.57,2.99039936]
[1740719487217,23.54990872,127.63,127.62,7.8431]
[1740719487418,81.46943156,127.66,127.62,14.4]
[1740719487817,81.46943156,127.66,127.62,22.2433]
[1740719488020,190.0,127.74,127.62,14.4]
[1740719488321,0.05755521,127.65,127.63,0.05702582]
[1740719488517,5.42200872,127.66,127.62,14.4]
[1740719488721,81.52130367,127.65,127.63,0.0516872]
[1740719489122,81.46943156,127.64,127.62,14.4]
[1740719489319,81.46943156,127.64,127.63,0.05840904]
[1740719490024,81.46943156,127.64,127.61,213.02]
[1740719490226,81.46943156,127.62,127.61,213.02]
[1740719491916,81.46943156,127.62,127.6,0.05110337]
[1740719492119,81.46943156,127.61,127.6,0.05110337]
[1740719495025,0.05784777,127.63,127.6,0.05110337]
[1740719495321,81.46943156,127.62,127.6,0.05110337]
[1740719495527,81.46943156,127.62,127.6,7.89560337]
[1740719495724,0.05784777,127.63,127.6,7.89560337]
[1740719496027,81.52727933,127.63,127.6,0.05110337]
[1740719496232,0.05784777,127.63,127.6,0.05110337]
[1740719496524,10.69582902,127.73,127.6,1.61850148]
[1740719496729,76.04742284,127.67,127.61,2.98980229]
[1740719497024,76.04742284,127.67,127.62,15.822527]
[1740719497230,190.0,127.72,127.63,1.422527]
[1740719497426,14.70812902,127.73,127.63,1.422527]
[1740719497427,81.46943156,127.67,127.63,1.422527]
[1740719497823,0.05176942,127.66,127.64,0.05713019]
[1740719498129,81.46943156,127.68,127.64,7.842]
[1740719498329,0.05548496,127.66,127.64,7.89806936]
[1740719498529,81.46943156,127.67,127.62,14.4]
[1740719498729,4.0123,127.73,127.62,14.4]
[1740719498730,0.05583612,127.66,127.65,7.8414]
[1740719499121,4.0123,127.73,127.65,7.8414]
[1740719499324,81.46943156,127.67,127.64,7.89889311]
[1740719499531,0.05992417,127.69,127.67,0.05198981]
[1740719499728,190.0,127.79,127.66,5.54050067]
[1740719499931,190.0,127.78,127.67,1.42171399]
[1740719500121,190.0,127.77,127.65,213.08]
[1740719500326,4.0485,127.76,127.65,213.08]
[1740719500522,4.0485,127.76,127.66,1.42192417]
[1740719500735,0.05965742,127.72,127.69,0.05245668]
[1740719500927,0.05965742,127.72,127.69,14.45245668]
[1740719502836,190.0,127.77,127.69,14.45245668]
[1740719503034,4.0485,127.79,127.7,1.42148462]
[1740719503634,4.0485,127.79,127.69,14.4]
[1740719503830,4.0485,127.79,127.76,7.8346]
[1740719504031,4.0485,127.79,127.69,14.4]
[1740719504333,0.05914987,127.75,127.74,7.836]
[1740719504535,4.987e-05,127.75,127.74,7.836]
[1740719504730,42.7833161,127.84,127.74,23.48]
[1740719504931,42.7833161,127.84,127.83,7.8305]
[1740719505527,30.8325161,127.84,127.83,7.8305]
[1740719505935,0.04912537,127.85,127.82,0.05137928]
[1740719506241,0.04912537,127.85,127.72,14.4]
[1740719506531,4.1575,127.87,127.76,1.42074647]
[1740719506731,4.1575,127.87,127.72,14.4]
[1740719507537,0.05860995,127.82,127.8,0.05434163]
[1740719507731,0.05860995,127.82,127.72,14.4]
[1740719508026,4.1575,127.87,127.72,14.4]
[1740719508335,4.1575,127.87,127.72,18.2611]
[1740719509033,0.05330265,127.82,127.8,0.05348926]
[1740719509434,4.1575,127.87,127.8,0.05348926]
[1740719509937,4.1575,127.87,127.75,1.56555772]
[1740719510130,0.05977711,127.85,127.75,1.56555772]
[1740719510334,4.1575,127.87,127.72,3.8611]
[1740719510636,4.1575,127.87,127.7,212.94]
[1740719511234,0.05916936,127.8,127.77,0.0597677]
[1740719511636,7.8301,127.84,127.71,12.214673]
[1740719511836,0.05391746,127.8,127.77,0.05885751]
[1740719512038,4.1575,127.87,127.71,12.214673]
[1740719512339,0.0511243,127.8,127.77,0.05304042]
[1740719512539,7.8312,127.82,127.73,7.8366]
[1740719512736,0.04958705,127.8,127.77,0.05692854]
[1740719513133,4.1575,127.87,127.77,0.05692854]
[1740719513134,7.8319,127.81,127.77,0.05302043]
[1740719513334,0.05737459,127.8,127.72,7.8368]
[1740719513539,4.1575,127.87,127.78,0.05852564]
[1740719513740,7.8312,127.82,127.71,12.21515254]
[1740719513941,0.05900617,127.77,127.71,12.21515254]
[1740719514242,7.8312,127.82,127.75,0.05227744]
[1740719514436,4.1575,127.87,127.75,0.05227744]
[1740719514437,7.8307,127.83,127.75,0.05227744]
[1740719514647,0.0595486,127.8,127.74,7.8359]
[1740719514936,0.0595486,127.8,127.78,0.05282038]
[1740719517043,0.0595486,127.8,127.71,12.21515254]
[1740719517345,4.1575,127.87,127.71,12.21515254]
[1740719518041,7.8336,127.78,127.71,12.21515254]
[1740719518243,0.05867864,127.8,127.71,12.21515254]
[1740719518433,4.1575,127.87,127.73,0.04967518]
[1740719518638,0.05506864,127.77,127.71,4.0447]
[1740719518838,7.8347,127.77,127.71,4.0447]
[1740719519146,0.05240041,127.75,127.73,0.05711701]
[1740719520042,0.05240041,127.75,127.73,0.02441701]
[1740719521648,7.8383,127.71,127.57,14.38]
[1740719521847,7.8383,127.71,127.58,1.42278975]
[1740719522041,7.8383,127.71,127.59,14.38]
[1740719522246,7.8377,127.72,127.59,14.38]
[1740719522742,0.05384396,127.67,127.64,0.05584339]
[1740719523147,14.38,127.76,127.59,14.38]
[1740719523346,0.05624203,127.67,127.64,0.05982441]
[1740719523544,0.05624203,127.67,127.56,7.9004]
[1740719523739,0.05624203,127.67,127.64,0.04965523]
[1740719523740,0.05148541,127.67,127.64,0.04965523]
[1740719523944,0.05148541,127.67,127.56,7.9004]
[1740719523945,7.89228541,127.67,127.56,7.9004]
[1740719524145,37.93,127.76,127.56,7.9004]
[1740719524146,37.93,127.76,127.56,4.0364]
[1740719524441,80.62031442,127.79,127.55,3.8065]
[1740719524442,23.55,127.74,127.55,3.8065]
[1740719524743,37.93,127.75,127.55,3.8065]
[1740719524950,1.44122267,127.74,127.55,3.8065]
[1740719525146,1.44122267,127.74,127.64,0.05721024]
[1740719525449,23.55,127.73,127.52,212.92]
[1740719525649,7.8425,127.64,127.56,7.8471]
[1740719525846,14.38,127.67,127.52,212.92]
[1740719526045,7.8411,127.66,127.52,212.92]
[1740719526551,0.05278725,127.6,127.58,0.05305113]
[1740719526946,190.0,127.64,127.58,0.05846898]
[1740719527149,0.05437027,127.6,127.58,0.05846898]
[1740719527346,190.0,127.62,127.52,212.92]
[1740719527551,0.05528441,127.6,127.58,0.0504441]
[1740719527748,14.38,127.68,127.52,212.92]
[1740719527951,0.0537889,127.61,127.58,0.05960348]
[1740719528254,14.38,127.68,127.52,212.92]
[1740719528455,0.05887554,127.61,127.58,0.05684443]
[1740719528844,0.05887554,127.61,127.52,212.92]
[1740719528845,0.05657213,127.61,127.52,212.92]
[1740719529147,14.38,127.68,127.52,212.92]
[1740719529345,0.05825782,127.58,127.55,0.05607903]
[1740719529544,7.847,127.57,127.46,7.8532]
[1740719529748,23.55,127.68,127.45,7.8317]
[1740719529947,15.82200232,127.67,127.45,7.8317]
[1740719530153,1.44200232,127.66,127.45,7.8317]
[1740719530559,1.44200232,127.66,127.46,3.8348]
[1740719530755,0.04984542,127.57,127.54,0.05657012]
[1740719531060,14.38,127.67,127.46,3.8348]
[1740719531260,7.8471,127.56,127.54,0.05130971]
[1740719531564,14.38,127.67,127.46,3.8348]
[1740719531763,0.05659125,127.56,127.54,0.05017952]
[1740719531966,14.4,127.6,127.45,7.8317]
[1740719532462,7.8487,127.54,127.46,7.8532]
[1740719532763,14.4,127.6,127.45,7.8317]
[1740719533063,0.05204286,127.54,127.51,0.05572012]
[1740719533258,0.05204286,127.54,127.37,14.4]
[1740719533562,213.2,127.59,127.38,2.9948795]
[1740719533762,213.2,127.59,127.39,2.99475625]
[1740719533962,7.8488,127.54,127.4,1.42477431]
[1740719534258,213.2,127.59,127.4,1.42477431]
[1740719534457,213.2,127.59,127.46,0.05412263]
[1740719534962,213.2,127.59,127.45,11.817]
[1740719535158,213.2,127.59,127.43,7.8551]
[1740719535359,213.2,127.59,127.4,11.817]
[1740719535758,0.05257486,127.51,127.48,0.05404633]
[1740719535960,0.05257486,127.51,127.4,11.817]
[1740719536160,213.2,127.59,127.4,11.817]
[1740719536357,0.05700982,127.47,127.44,0.05639275]
[1740719536665,213.2,127.59,127.42,7.8552]
[1740719536858,0.05825243,127.47,127.44,0.05181425]
[1740719537059,213.2,127.59,127.42,7.8552]
[1740719537256,0.05740219,127.47,127.44,0.0556342]
[1740719537466,14.4,127.5,127.39,1.56998194]
[1740719537763,7.8556,127.43,127.39,1.56998194]
[1740719537963,14.4,127.49,127.39,1.56998194]
[1740719538164,14.4,127.49,127.31,4.1771]
[1740719538866,0.05798009,127.41,127.39,0.05407685]
[1740719539066,0.05798009,127.41,127.31,4.1771]
[1740719539261,213.36,127.48,127.31,4.1771]
[1740719540469,0.05006113,127.41,127.38,0.05702385]
[1740719540865,213.36,127.48,127.31,4.1771]
[1740719541061,213.36,127.48,127.38,0.05737718]
[1740719541062,0.05783234,127.41,127.38,0.05737718]
[1740719541468,7.8546,127.44,127.31,4.1771]
[1740719541658,0.05521867,127.41,127.38,0.05160446]
[1740719543072,7.857,127.4,127.38,0.05160446]
[1740719543266,7.857,127.4,127.31,4.1771]
[1740719543468,190.0,127.39,127.31,4.1771]
[1740719543667,190.0,127.39,127.31,12.0395]
[1740719544271,190.0,127.39,127.31,4.1771]
[1740719544571,0.0530181,127.36,127.34,0.05029081]
[1740719545668,190.0,127.39,127.34,0.05029081]
[1740719546174,213.36,127.48,127.34,0.05029081]
[1740719546369,190.0,127.47,127.34,0.05029081]
[1740719546570,190.0,127.47,127.31,4.1771]
[1740719546765,0.05927912,127.42,127.31,4.1771]
[1740719546970,190.0,127.46,127.39,0.05819257]